bitfinex/quotes_ETHUSD_20250722
["timestamp","ask_amount","ask_price","bid_price","bid_amount"]
[1753210637017,2.85313049,3723.1,3722.5,0.1336]
[1753210637185,2.71955366,3723.1,3722.2,2.68657828]
[1753210637384,0.1336,3722.7,3722.3,4.611]
[1753210637682,0.1336,3722.7,3722.1,0.1336]
[1753210637683,2.68634434,3722.6,3722.1,0.1336]
[1753210637884,0.1336,3722.5,3722.3,4.611]
[1753210639525,0.002,3722.6,3722.4,3.11753885]
[1753210639827,0.002,3722.6,3722.5,2.68636668]
[1753210640029,0.002,3722.6,3722.4,0.1336]
[1753210640194,0.002,3722.6,3722.5,7.73077718]
[1753210640398,0.002,3722.6,3722.5,7.71746668]
[1753210641585,0.002,3722.6,3722.5,8.47126668]
[1753210641889,0.002,3722.6,3722.5,3.87126668]
[1753210642081,0.002,3722.6,3722.5,8.46226668]
[1753210642286,0.002,3722.6,3722.5,7.27536668]
[1753210642709,0.002,3722.6,3722.5,2.68636668]
[1753210643023,0.002,3722.6,3722.5,4.587]
[1753210643323,0.002,3722.6,3722.5,7.51997461]
[1753210643537,0.002,3722.6,3722.5,7.95107461]
[1753210643835,0.002,3722.6,3722.5,5.26470793]
[1753210644010,0.002,3722.6,3722.5,0.24660793]
[1753210644184,0.002,3722.6,3722.5,4.83360793]
[1753210644402,0.002,3722.6,3722.5,4.82860793]
[1753210645337,0.002,3722.6,3722.5,4.82760793]
[1753210645641,0.002,3722.6,3722.5,7.51372562]
[1753210645842,0.002,3722.6,3722.5,7.8104331]
[1753210646047,0.002,3722.6,3722.5,4.82735192]
[1753210646406,0.002,3722.6,3722.5,0.24635192]
[1753210646602,2.68829452,3722.6,3722.5,0.24635192]
[1753210646808,2.68829452,3722.6,3722.0,0.001]
[1753210646809,2.68643885,3722.4,3722.0,0.001]
[1753210647032,4.2211,3722.6,3722.0,0.001]
[1753210647033,2.68665538,3722.1,3722.0,0.001]
[1753210647218,5.68665538,3722.1,3722.0,0.001]
[1753210647634,6.14495538,3722.1,3722.0,0.001]
[1753210649754,3.0,3722.1,3722.0,0.001]
[1753210649908,5.68665538,3722.1,3722.0,0.001]
[1753210650431,3.0,3722.1,3722.0,0.24739721]
[1753210651149,0.7628,3722.6,3722.0,0.24739721]
[1753210651350,0.002,3722.6,3722.0,0.4321]
[1753210651554,0.002,3722.6,3722.3,0.1336]
[1753210651716,0.002,3722.6,3722.3,7.38509223]
[1753210652114,0.002,3722.6,3722.3,4.6986]
[1753210652366,0.002,3722.6,3722.3,0.1336]
[1753210652536,2.68640952,3722.5,3722.0,0.1346]
[1753210652735,0.1356,3722.6,3722.0,0.1346]
[1753210652736,0.1356,3722.6,3722.1,4.563]
[1753210653066,2.68644865,3722.4,3722.1,4.563]
[1753210653374,2.68641617,3722.5,3722.1,4.563]
[1753210653524,0.1356,3722.6,3722.0,0.001]
[1753210653525,5.68665538,3722.1,3722.0,0.001]
[1753210654118,3.0,3722.1,3722.0,0.001]
[1753210654322,3.0,3722.1,3722.0,10.24741021]
[1753210654734,5.68665538,3722.1,3722.0,10.24741021]
[1753210654939,6.14495538,3722.1,3722.0,10.001]
[1753210655258,6.90895538,3722.1,3722.0,10.24741458]
[1753210655983,5.68665538,3722.1,3722.0,10.24741458]
[1753210656660,0.4583,3722.4,3722.0,10.24741458]
[1753210656661,3.0,3722.4,3722.0,10.67851458]
[1753210656880,0.1336,3722.4,3722.1,0.24641458]
[1753210657028,0.1336,3722.4,3722.2,0.24641458]
[1753210657231,0.002,3722.6,3722.3,4.79442371]
[1753210657545,0.002,3722.6,3722.4,0.67752371]
[1753210657865,0.002,3722.6,3722.5,0.24642371]
[1753210658027,0.002,3722.6,3722.4,4.548]
[1753210658232,2.68829592,3722.6,3722.4,4.548]
[1753210658464,3.0,3722.5,3722.3,0.1336]
[1753210658666,5.68665538,3722.1,3722.0,10.001]
[1753210658833,5.68665538,3722.1,3722.0,10.24771976]
[1753210659271,5.68665538,3722.1,3722.0,10.001]
[1753210659472,6.14495538,3722.1,3722.0,10.001]
[1753210659890,5.68665538,3722.1,3722.0,10.001]
[1753210660178,5.68665538,3722.1,3722.0,10.2477786]
[1753210660606,3.47299916,3722.5,3722.0,10.24779425]
[1753210660607,0.7866,3722.5,3722.0,10.24779425]
[1753210660878,3.0,3722.5,3722.1,2.15787368]
[1753210661178,3.0,3722.5,3722.2,5.22989425]
[1753210661379,3.0,3722.5,3722.3,0.24679425]
[1753210661542,5.68655197,3722.3,3722.0,10.001]
[1753210661747,4.32072182,3722.2,3720.3,0.16670001]
[1753210661940,1.38501593,3721.7,3718.2,0.001]
[1753210662172,1.7874511,3722.0,3716.2,0.16125688]
[1753210662173,8.27963177,3718.1,3716.2,0.16125688]
[1753210662374,12.38165302,3721.6,3714.8,22.31168206]
[1753210662375,5.69048643,3716.8,3714.8,22.31168206]
[1753210662668,5.69048643,3716.8,3714.8,9.06549096]
[1753210662669,2.6914278,3715.5,3714.8,9.06549096]
[1753210662871,2.6914278,3715.5,3715.4,1e-08]
[1753210662872,11.05777904,3715.5,3715.4,1e-08]
[1753210663098,11.05777904,3715.5,3712.8,0.4311]
[1753210663099,3.0,3715.4,3712.8,0.4311]
[1753210663245,2.69179004,3715.0,3712.9,5.226]
[1753210663437,11.27963177,3715.1,3712.8,0.4311]
[1753210663438,0.8253,3714.0,3712.8,0.4311]
[1753210663685,2.3181963,3713.9,3712.8,0.4311]
[1753210663842,2.69303147,3713.3,3712.8,0.4311]
[1753210664048,2.69252356,3714.0,3712.9,0.4311]
[1753210664243,0.7578,3714.8,3712.9,0.4311]
[1753210664244,0.03365734,3713.9,3712.9,0.4311]
[1753210664501,0.7578,3714.8,3713.0,5.33493239]
[1753210664707,0.14048194,3715.4,3713.0,5.33493239]
[1753210664708,2.7255649,3714.7,3713.4,0.7815]
[1753210664877,0.03352743,3714.7,3713.5,0.4311]
[1753210665093,0.03352743,3715.3,3713.5,0.4311]
[1753210665299,0.03352743,3715.2,3713.5,0.4311]
[1753210665495,3.0,3715.5,3713.6,0.02692804]
[1753210665814,2.69014677,3717.3,3713.6,0.02692804]
[1753210665815,2.69267916,3713.8,3713.6,0.02692804]
[1753210666228,2.69303892,3713.3,3712.9,0.02693312]
[1753210666372,2.69318052,3713.1,3712.9,0.02693312]
[1753210666691,2.69318052,3713.1,3712.3,0.4311]
[1753210666692,2.69363338,3712.5,3712.3,0.4311]
[1753210666891,5.364,3712.4,3711.7,0.001]
[1753210667100,2.69409959,3711.9,3711.7,0.001]
[1753210667302,2.69411067,3711.8,3711.7,0.001]
[1753210667681,5.413,3712.1,3711.7,0.4494]
[1753210667882,5.413,3712.2,3711.8,0.4484]
[1753210668089,2.69367804,3712.4,3711.7,0.001]
[1753210668295,5.413,3712.3,3711.7,0.001]
[1753210668517,5.413,3712.3,3711.7,0.1354]
[1753210668686,2.69383679,3712.2,3711.7,0.1354]
[1753210668884,5.413,3712.3,3711.7,0.1354]
[1753210669390,5.404,3712.2,3711.7,0.001]
[1753210669587,0.1344,3712.0,3711.7,0.001]
[1753210669894,2.69405099,3711.9,3711.7,0.001]
[1753210670128,2.69411067,3711.8,3711.7,0.001]
[1753210670386,11.1256381,3711.8,3711.7,0.001]
[1753210670617,5.69411067,3711.8,3711.7,1e-08]
[1753210670920,5.83431067,3711.8,3711.7,1e-08]
[1753210671094,5.83431067,3711.8,3711.0,0.001]
[1753210671095,2.69461884,3711.1,3711.0,1e-08]
[1753210671283,25.85777804,3711.1,3711.0,1e-08]
[1753210671489,2.69505457,3710.5,3710.4,1e-08]
[1753210671718,11.120582,3710.5,3710.4,1e-08]
[1753210671950,12.02315457,3710.5,3710.4,1e-08]
[1753210672309,20.30278634,3710.5,3710.4,1e-08]
[1753210672527,14.91078634,3710.5,3710.4,1e-08]
[1753210672680,6.49095457,3710.5,3710.4,1e-08]
[1753210672887,11.87695457,3710.5,3710.4,1e-08]
[1753210673100,12.01715457,3710.5,3710.4,1e-08]
[1753210673323,21.77218055,3710.5,3710.4,1e-08]
[1753210673696,21.77218055,3710.5,3708.9,0.001]
[1753210673697,3.0,3710.4,3708.9,0.001]
[1753210673940,6.44994451,3709.0,3708.9,0.001]
[1753210674091,11.83394451,3709.0,3708.9,0.001]
[1753210674287,2.69679889,3708.1,3707.6,0.4484]
[1753210674643,8.11232632,3708.1,3707.2,0.1344]
[1753210674792,8.07879889,3708.1,3707.2,0.1344]
[1753210675298,8.381,3708.1,3707.5,0.4484]
[1753210675616,8.381,3708.1,3708.0,0.4494]
[1753210675617,3.0,3708.1,3708.0,0.4494]
[1753210675823,2.69585894,3709.4,3708.1,2.69679889]
[1753210676029,0.1344,3708.9,3708.2,3.5426758]
[1753210676229,3.0,3708.7,3708.3,0.4484]
[1753210676539,1.25186407,3708.6,3708.4,0.4484]
[1753210676722,5.367,3708.5,3708.2,0.1344]
[1753210676936,5.367,3708.4,3708.2,0.1344]
[1753210677108,5.367,3708.4,3708.3,0.36617816]
[1753210677109,5.365,3708.4,3708.3,0.36617816]
[1753210677307,3.0,3708.4,3708.0,0.001]
[1753210677530,3.69548067,3708.2,3708.0,0.4494]
[1753210677742,0.1344,3708.3,3708.1,0.4484]
[1753210677947,0.1344,3708.3,3706.9,3.0]
[1753210677948,5.376,3708.3,3706.9,3.0]
[1753210678242,1.85167278,3707.5,3707.4,2.69730808]
[1753210678439,2.31459098,3708.0,3707.3,2.69734891]
[1753210678750,0.92494913,3707.6,3707.4,2.83170111]
[1753210679044,0.92494913,3707.6,3706.2,2.70609741]
[1753210679045,0.92494913,3707.6,3707.1,2.69745564]
[1753210679246,0.92494913,3707.6,3707.5,2.83163533]
[1753210679479,0.92494913,3708.1,3708.0,2.69687162]
[1753210679651,0.44994913,3708.2,3708.0,2.69687162]
[1753210679815,0.99721077,3709.2,3709.1,2.69607182]
[1753210680012,0.1344,3709.6,3709.2,2.69599913]
[1753210680207,0.1344,3709.6,3709.5,2.6957811]
[1753210680452,0.20583446,3709.6,3709.5,3.1441811]
[1753210680604,1.84989826,3710.2,3709.5,1.16680967]
[1753210680804,1.84989826,3710.5,3709.7,0.8324]
[1753210681057,3.0,3710.5,3710.1,2.69532072]
[1753210681351,3.20472261,3710.5,3709.1,0.8324]
[1753210681558,3.20472261,3710.5,3709.3,0.1344]
[1753210681559,0.1344,3710.0,3709.3,0.1344]
[1753210682555,0.1344,3710.0,3709.3,2.83031484]
[1753210682855,0.1344,3709.6,3708.9,0.1344]
[1753210683035,0.16809635,3709.6,3708.9,0.1344]
[1753210683466,0.1344,3709.6,3709.3,2.6958792]
[1753210683678,1.84989826,3710.3,3709.4,0.4484]
[1753210683856,0.33558489,3710.5,3709.8,0.1344]
[1753210684059,0.20118489,3710.5,3709.9,0.45527976]
[1753210684252,1.84989826,3710.9,3710.8,2.69483669]
[1753210684564,2.31459098,3711.3,3710.8,0.50310863]
[1753210684761,0.4317,3712.3,3710.8,0.50310863]
[1753210684762,4.16825461,3711.6,3711.2,2.69452351]
[1753210684961,4.16825461,3711.6,3711.1,0.8201]
[1753210684962,1.85366363,3711.6,3711.4,0.1344]
[1753210685183,1.85366363,3711.8,3711.7,2.69418325]
[1753210685338,0.19999217,3711.9,3711.4,0.1344]
[1753210685678,2.31459098,3711.9,3711.4,2.82879785]
[1753210685851,2.31459098,3711.9,3711.6,2.69423854]
[1753210686047,2.31459098,3711.9,3711.4,0.1344]
[1753210686248,1.85648915,3711.6,3711.5,2.69432843]
[1753210686451,2.31459098,3712.0,3711.6,2.69418348]
[1753210686652,0.20255633,3712.1,3711.4,3.19369408]
[1753210686653,2.31459098,3711.9,3711.7,2.69417404]
[1753210686869,2.44899098,3712.2,3711.8,2.69411067]
[1753210687048,2.44899098,3712.2,3711.4,0.49929305]
[1753210687049,2.44899098,3712.2,3711.5,2.69432009]
[1753210687239,1.85987419,3711.7,3711.6,2.69425584]
[1753210687438,0.77185462,3711.9,3711.7,2.69415786]
[1753210687641,3.24557354,3712.4,3711.7,0.35074509]
[1753210687642,0.1344,3712.2,3711.7,0.35074509]
[1753210687842,0.23754163,3712.3,3711.1,0.8201]
[1753210688049,0.23754163,3712.3,3711.4,0.55]
[1753210688265,2.69239763,3714.2,3711.2,0.55]
[1753210688266,0.1344,3712.4,3712.0,0.55]
[1753210688466,0.20093976,3712.4,3712.1,0.00684227]
[1753210688669,1.86500463,3713.0,3711.9,0.7714]
[1753210688670,0.24776454,3712.3,3711.9,0.7714]
[1753210688940,0.24776454,3712.3,3711.7,8.00416628]
[1753210688941,0.80905152,3712.2,3710.9,0.7714]
[1753210689138,0.8209,3712.0,3710.3,0.7714]
[1753210689361,2.69438697,3711.5,3710.3,0.7714]
[1753210689573,2.67456731,3711.4,3710.3,0.7714]
[1753210689877,0.56128698,3711.3,3710.4,2.7019497]
[1753210690038,0.5634138,3711.2,3711.0,2.69462574]
[1753210690240,0.5634138,3711.1,3711.0,2.69469145]
[1753210690560,0.5634138,3711.1,3711.0,3.14309145]
[1753210690763,0.5634138,3711.1,3710.6,5.859]
[1753210690764,0.5634138,3711.1,3710.6,0.55]
[1753210690965,0.56581676,3711.0,3710.9,2.69476407]
[1753210691273,0.56581676,3711.0,3710.6,0.44087669]
[1753210691481,0.56581676,3710.9,3709.8,0.00686934]
[1753210691646,1.86500463,3711.3,3710.2,2.69524708]
[1753210691647,0.56581676,3710.8,3710.2,2.69524708]
[1753210691843,0.59950312,3710.7,3709.7,0.8058]
[1753210692041,0.56581676,3710.6,3709.8,2.6955631]
[1753210692242,0.56581676,3710.6,3709.7,6.1038]
[1753210692243,0.56581676,3710.5,3709.7,0.8058]
[1753210692458,1.86500463,3710.0,3709.7,1.68555795]
[1753210692775,0.57242097,3709.9,3709.8,3.1439631]
[1753210692979,0.57242097,3709.9,3709.8,3.6939631]
[1753210693136,0.57242097,3709.9,3709.8,7.9835631]
[1753210693342,0.57242097,3709.9,3709.7,1.68555795]
[1753210693575,0.57242097,3709.8,3709.7,3.50143576]
[1753210693774,0.57242097,3709.8,3709.7,9.23383576]
[1753210693972,0.57242097,3709.8,3709.7,3.94983576]
[1753210694284,0.57242097,3709.8,3709.7,9.78572241]
[1753210694579,1.86500463,3710.6,3710.5,3.24505457]
[1753210694873,1.86500463,3711.1,3711.0,2.69469145]
[1753210695075,1.86500463,3711.2,3711.1,2.69461884]
[1753210695378,1.86500463,3711.2,3710.6,5.274]
[1753210695379,0.4317,3711.2,3710.6,5.274]
[1753210695546,1.91345823,3711.0,3710.6,5.274]
[1753210695879,1.91345823,3710.8,3710.6,5.274]
[1753210696376,1.91345823,3710.9,3710.3,0.00687005]
[1753210696577,1.91345823,3710.9,3710.7,5.269]
[1753210696812,1.91345823,3711.0,3710.9,3.24476407]
[1753210697099,1.91345823,3711.8,3711.1,2.69455211]
[1753210697246,1.91345823,3711.9,3711.1,0.55685634]
[1753210697441,1.91345823,3712.1,3711.9,2.69403809]
[1753210697645,1.91345823,3712.2,3712.0,7.94896551]
[1753210697852,1.91345823,3712.6,3712.1,2.69389294]
[1753210698052,1.91345823,3712.6,3712.2,7.9488145]
[1753210698276,1.91345823,3713.0,3712.3,2.69373239]
[1753210698453,0.1344,3713.0,3712.4,0.14123438]
[1753210698677,0.8116,3713.2,3712.4,0.14123438]
[1753210698678,1.91345823,3713.5,3712.5,0.55]
[1753210698874,0.14059693,3713.8,3713.0,2.69317396]
[1753210698875,0.1344,3713.3,3713.0,2.69317396]
[1753210699093,0.1344,3713.3,3713.1,5.244]
[1753210699404,0.1344,3713.3,3712.6,0.1344]
[1753210699602,0.72009755,3713.2,3712.7,5.239]
[1753210699760,1.68783933,3713.1,3712.9,2.69330786]
[1753210699955,0.8116,3713.4,3712.9,2.69330786]
[1753210699956,0.25045509,3713.0,3712.9,3.3777125]
[1753210700493,0.25045509,3713.0,3712.8,2.69338504]
[1753210700494,1.47104701,3713.3,3711.4,0.4385]
[1753210700692,0.44174301,3713.2,3711.9,5.783]
[1753210700877,0.1913847,3713.2,3712.5,2.69359423]
[1753210701199,1.88018424,3713.4,3712.6,2.69346253]
[1753210701399,1.43738424,3713.2,3712.1,0.55]
[1753210701561,1.43738424,3713.3,3712.6,3.24347855]
[1753210701761,1.43738424,3713.3,3712.6,2.69347855]
[1753210702086,1.43738424,3713.3,3712.6,3.24351182]
[1753210702284,3.03366368,3713.2,3712.6,0.55]
[1753210702592,0.7909,3713.0,3712.2,5.223]
[1753210702762,0.82456549,3713.0,3712.3,2.69373595]
[1753210702959,0.4428,3713.1,3712.2,5.223]
[1753210702960,1.43738424,3713.1,3712.4,0.55]
[1753210703167,1.43738424,3713.2,3712.6,2.6935058]
[1753210703471,4.43738424,3713.5,3711.8,0.7675]
[1753210703669,2.69323996,3713.0,3711.9,5.211]
[1753210703873,2.69338504,3712.8,3711.9,5.211]
[1753210704194,4.43738424,3713.0,3712.1,2.69384976]
[1753210704393,0.0336664,3712.9,3711.6,0.55]
[1753210704594,0.4428,3712.9,3712.1,2.69388429]
[1753210704793,3.13612667,3712.9,3712.1,0.55]
[1753210705361,0.4428,3712.9,3712.1,0.55]
[1753210705558,1.88018424,3712.9,3712.0,0.55]
[1753210705870,2.69339851,3712.8,3712.0,0.55]
[1753210706066,1.43738424,3712.8,3712.0,3.24394563]
[1753210706266,1.43738424,3712.8,3712.1,2.69388792]
[1753210706491,0.5748435,3712.7,3712.1,2.69388792]
[1753210706667,0.5748435,3712.6,3712.2,2.69382037]
[1753210706869,0.5748435,3712.5,3712.3,0.55]
[1753210707069,0.5748435,3712.4,3712.3,0.55]
[1753210707583,0.5748435,3712.4,3712.3,3.24374781]
[1753210707785,0.5748435,3712.4,3712.3,0.55]
[1753210707978,0.002,3712.8,3712.3,0.55]
[1753210708402,0.002,3712.8,3712.7,3.24345759]
[1753210708558,0.002,3712.8,3712.7,8.42328979]
[1753210708760,0.002,3712.8,3712.7,8.85495759]
[1753210709389,0.002,3712.8,3712.7,8.41645759]
[1753210709701,0.002,3712.8,3712.7,8.85495759]
[1753210709903,0.002,3712.8,3712.7,9.64685806]
[1753210710197,0.002,3712.8,3712.7,8.41645759]
[1753210710354,0.002,3712.8,3712.7,8.85495759]
[1753210710564,0.002,3712.8,3712.7,8.98935759]
[1753210711690,0.002,3712.8,3712.7,3.37785759]
[1753210711891,0.002,3712.8,3712.7,8.53285759]
[1753210712257,0.002,3712.8,3712.7,3.37785759]
[1753210712458,0.002,3712.8,3712.7,0.6844]
[1753210712660,0.4448,3712.8,3712.1,5.141]
[1753210713003,0.4448,3712.8,3712.2,0.1344]
[1753210713164,0.002,3712.8,3712.6,2.69352941]
[1753210713509,0.002,3712.8,3712.3,0.00683701]
[1753210713510,0.002,3712.8,3712.7,0.6844]
[1753210713659,0.002,3712.8,3712.7,3.24345759]
[1753210714361,0.5792,3712.8,3712.2,0.1344]
[1753210714582,0.8033,3712.5,3711.6,2.69425584]
[1753210714781,0.1344,3712.3,3711.7,2.82858325]
[1753210715174,0.1344,3712.3,3711.9,0.55]
[1753210715469,0.1344,3712.3,3711.7,0.1344]
[1753210715674,0.03367275,3712.2,3711.7,0.1344]
[1753210715871,0.4428,3712.1,3711.1,0.7667]
[1753210716092,0.1344,3711.9,3711.4,2.69440103]
[1753210716417,0.8033,3712.5,3711.8,0.55]
[1753210716625,0.03367094,3712.4,3711.1,0.7667]
[1753210716890,0.1344,3712.0,3711.4,0.1344]
[1753210717092,0.1344,3712.0,3711.5,0.55]
[1753210717301,0.8033,3712.5,3711.9,3.24403809]
[1753210717511,0.1344,3712.4,3712.0,0.55]
[1753210717667,0.1344,3712.4,3711.8,0.55]
[1753210718266,0.1344,3712.4,3711.8,3.24410445]
[1753210718664,0.1344,3712.4,3711.8,3.24410228]
[1753210718974,0.1344,3712.4,3712.1,2.69389231]
[1753210719305,0.1344,3712.4,3712.0,0.55]
[1753210719463,0.1344,3712.5,3711.9,0.1344]
[1753210719667,0.03566731,3712.8,3712.2,0.55]
[1753210719668,0.1344,3712.4,3712.2,0.55]
[1753210719863,0.1344,3712.4,3712.1,0.55]
[1753210720205,0.1344,3712.4,3711.9,3.24401885]
[1753210720408,0.1344,3712.4,3712.1,0.55]
[1753210720907,0.1344,3712.4,3712.2,3.24379453]
[1753210721065,0.1344,3712.4,3712.3,2.69374781]
[1753210721262,0.002,3712.8,3712.4,0.55]
[1753210721499,0.002,3712.8,3712.3,0.55]
[1753210721500,0.002,3712.8,3712.7,3.24345759]
[1753210721874,0.002,3712.8,3712.7,3.37785759]
[1753210723018,0.002,3712.8,3712.7,4.02885362]
[1753210723315,0.002,3712.8,3712.7,3.81635759]
[1753210724068,0.002,3712.8,3712.7,11.88335759]
[1753210724267,0.002,3712.8,3712.7,12.70545759]
[1753210724472,0.002,3712.8,3712.7,0.6844]
[1753210724804,0.002,3712.8,3712.7,3.37785759]
[1753210725012,0.002,3712.8,3712.7,4.49813528]
[1753210725310,0.002,3712.8,3712.7,4.93663528]
[1753210729009,0.002,3712.8,3712.7,4.49813528]
[1753210729211,0.002,3712.8,3712.7,0.1344]
[1753210730403,0.002,3712.8,3712.7,3.37785759]
[1753210731212,0.002,3712.8,3712.7,0.6844]
[1753210731378,0.002,3712.8,3712.7,3.37785759]
[1753210732108,0.002,3712.8,3712.7,0.6844]
[1753210732899,0.002,3712.8,3712.7,3.37785759]
[1753210733210,0.002,3712.8,3712.7,0.6844]
[1753210734875,0.48086731,3712.8,3712.0,0.1344]
[1753210735071,0.1344,3712.6,3712.1,0.55]
[1753210735489,0.002,3712.8,3712.2,0.00683964]
[1753210735678,3.1364,3712.8,3712.3,0.55]
[1753210736214,0.1344,3712.3,3711.7,2.69414966]
[1753210736417,1.2315,3712.7,3711.5,0.1344]
[1753210736418,0.1344,3712.1,3711.5,0.1344]
[1753210736616,0.1344,3712.1,3711.7,2.69418325]
[1753210736791,0.1344,3712.5,3711.9,0.1344]
[1753210737116,0.03367094,3712.4,3711.3,4.987]
[1753210737421,2.82834465,3712.1,3711.5,0.1344]
[1753210737590,0.1344,3712.1,3711.5,0.1344]
[1753210737794,0.4452,3712.2,3711.4,0.00685008]
[1753210738121,0.4452,3712.2,3711.6,0.55]
[1753210738122,0.1344,3712.1,3711.6,0.55]
[1753210738484,0.1344,3712.1,3711.6,3.24424821]
[1753210738684,0.1344,3712.1,3711.6,0.55]
[1753210739082,0.7863,3712.7,3712.0,0.55]
[1753210739319,0.1344,3712.5,3712.0,0.55]
[1753210739625,0.4452,3712.4,3712.0,0.55]
[1753210739922,0.4452,3712.3,3711.9,0.1344]
[1753210740122,0.03367275,3712.2,3712.0,0.55]
[1753210740322,2.69389294,3712.1,3712.0,0.55]
[1753210740628,2.69405049,3711.9,3711.6,0.55]
[1753210740788,0.5796,3712.1,3711.6,0.55]
[1753210741207,0.5796,3712.1,3711.6,3.24420921]
[1753210741501,2.69418325,3711.7,3711.6,0.55]
[1753210741699,2.69418325,3711.7,3709.6,2.6956967]
[1753210741700,2.69452913,3711.3,3711.1,0.1344]
[1753210742007,2.69475816,3711.0,3710.6,0.1344]
[1753210742208,0.4452,3710.9,3710.4,0.1344]
[1753210742588,0.1344,3711.0,3710.4,0.5992]
[1753210742809,0.1344,3711.4,3710.9,0.55]
[1753210743093,0.8199,3712.6,3711.8,0.55]
[1753210743410,0.1344,3712.3,3711.8,0.55]
[1753210743817,5.69411067,3711.8,3711.7,1e-08]
[1753210743989,11.44521067,3711.8,3711.7,1e-08]
[1753210744196,11.89041067,3711.8,3711.7,1e-08]
[1753210744520,6.94741067,3711.8,3711.7,1e-08]
[1753210744717,11.91241067,3711.8,3711.7,1e-08]
[1753210745824,11.90441067,3711.8,3711.7,1e-08]
[1753210747622,6.94741067,3711.8,3711.7,1e-08]
[1753210747823,11.89441067,3711.8,3711.7,1e-08]
[1753210749225,18.82932084,3711.8,3711.7,1e-08]
[1753210749927,11.87941067,3711.8,3711.7,1e-08]
[1753210750434,18.81432084,3711.8,3711.7,1e-08]
[1753210750604,11.87341067,3711.8,3711.7,1e-08]
[1753210750791,6.94741067,3711.8,3711.7,1e-08]
[1753210750996,18.80632084,3711.8,3711.7,1e-08]
[1753210751606,18.80432084,3711.8,3711.7,1e-08]
[1753210751818,6.94741067,3711.8,3711.7,1e-08]
[1753210752009,11.86941067,3711.8,3711.7,1e-08]
[1753210752237,6.94741067,3711.8,3711.7,1e-08]
[1753210752415,11.86441067,3711.8,3711.7,1e-08]
[1753210752807,0.8081,3711.8,3711.7,1e-08]
[1753210753004,7.60911067,3711.8,3711.7,1e-08]
[1753210753202,11.05431067,3711.8,3711.7,1e-08]
[1753210753398,3.0,3711.8,3711.7,1e-08]
[1753210753603,4.913,3711.8,3711.7,1e-08]
[1753210753811,8.08598705,3711.8,3711.7,1e-08]
[1753210754033,3.13931067,3711.8,3711.7,1e-08]
[1753210754576,4.909,3711.8,3711.7,1e-08]
[1753210754744,5.3542,3711.8,3711.7,1e-08]
[1753210755055,3.13931067,3711.8,3711.7,1e-08]
[1753210755340,8.04831067,3711.8,3711.7,1e-08]
[1753210755855,11.04831067,3711.8,3711.7,1e-08]
[1753210756142,6.90251067,3711.8,3711.7,1e-08]
[1753210756439,11.80051067,3711.8,3711.7,1e-08]
[1753210757145,6.90251067,3711.8,3711.7,1e-08]
[1753210757344,11.79551067,3711.8,3711.7,1e-08]
[1753210757836,11.79351067,3711.8,3711.7,1e-08]
[1753210758362,11.78851067,3711.8,3711.7,1e-08]
[1753210759026,3.0,3711.8,3711.7,1e-08]
[1753210759224,10.57411067,3711.8,3711.7,1e-08]
[1753210759629,3.0,3711.7,3710.7,0.1344]
[1753210759825,0.1344,3711.3,3710.7,2.82925786]
[1753210760060,4.876,3711.2,3710.7,2.82925786]
[1753210760264,4.876,3711.2,3710.7,0.1344]
[1753210760964,4.876,3711.2,3710.7,2.82930861]
[1753210761138,4.876,3711.2,3710.8,2.69478749]
[1753210761346,4.876,3711.2,3710.7,2.82924905]
[1753210761665,4.876,3711.2,3710.8,0.55]
[1753210762039,4.876,3711.2,3710.2,0.1344]
[1753210762040,0.4395,3711.1,3710.2,0.1344]
[1753210762357,0.4395,3711.1,3709.6,3.0]
[1753210762358,0.1344,3710.9,3710.1,2.69533848]
[1753210762665,0.1344,3710.6,3709.9,0.901]
[1753210762867,0.1344,3710.6,3710.1,2.69533284]
[1753210763065,0.1344,3710.6,3710.2,0.55]
[1753210763429,0.1344,3710.6,3710.3,0.55]
[1753210763828,0.1344,3710.6,3710.0,0.55]
[1753210763829,0.03368818,3710.5,3710.0,0.55]
[1753210764033,0.4395,3710.4,3709.8,0.001]
[1753210764272,0.1344,3710.3,3709.8,0.001]
[1753210765029,0.1344,3710.3,3710.1,2.69528525]
[1753210765235,4.848,3710.8,3710.2,0.55]
[1753210765535,0.1344,3710.5,3710.2,0.55]
[1753210766644,0.7983,3711.3,3710.5,0.55]
[1753210766852,0.1344,3710.9,3710.5,2.69503491]
[1753210767052,0.1344,3710.9,3710.6,0.55]
[1753210767389,0.1344,3710.9,3710.5,2.69503491]
[1753210767390,0.1344,3710.9,3710.5,0.55]
[1753210767695,0.1344,3710.9,3710.6,0.55]
[1753210768040,0.1344,3710.9,3710.5,0.55]
[1753210768278,0.1344,3710.9,3710.2,2.82965992]
[1753210768279,0.1344,3710.9,3710.3,0.55]
[1753210768446,0.1344,3710.9,3710.3,3.24519224]
[1753210768974,0.1344,3710.9,3710.6,0.55]
[1753210769178,0.1344,3710.9,3710.8,2.69483669]
[1753210769351,4.819,3711.4,3711.3,0.55]
[1753210769675,8.0670729,3711.4,3711.1,0.55]
[1753210769873,0.3824729,3711.3,3711.1,0.55]
[1753210770175,0.3824729,3711.3,3711.0,3.24468211]
[1753210770339,0.2480729,3711.2,3710.8,0.55]
[1753210770536,0.2480729,3711.1,3710.8,0.55]
[1753210770739,0.2480729,3711.0,3710.9,0.55]
[1753210770973,0.2480729,3711.0,3710.9,3.24470921]
[1753210771392,0.2480729,3711.0,3710.9,0.55]
[1753210771556,0.2480729,3711.0,3710.9,3.24476407]
[1753210771758,0.2480729,3711.0,3710.9,0.55]
[1753210772153,0.1344,3711.3,3710.9,0.55]
[1753210772369,0.24763115,3711.2,3711.0,3.2446902]
[1753210772571,0.24746028,3711.1,3710.8,0.55]
[1753210772768,0.1344,3711.3,3711.1,0.55]
[1753210772958,0.1344,3711.3,3710.9,0.55]